bitfinex/quotes_SOLUSD_20250129
["timestamp","ask_amount","ask_price","bid_price","bid_amount"]
[1738154786151,2.94299005,229.3,229.29,66.70863827]
[1738154786581,0.97607093,229.32,229.31,28.388764]
[1738154786882,0.063,229.36,229.35,44.278844]
[1738154787079,0.063,229.36,229.35,52.31743827]
[1738154787781,1.063,229.36,229.33,8.03859427]
[1738154787980,1.063,229.36,229.32,1.5831]
[1738154788378,1.063,229.36,229.32,9.62169427]
[1738154788582,1.0,229.33,229.31,30.99859427]
[1738154788873,0.85,229.3,229.29,0.03]
[1738154789489,0.85,229.3,229.29,32.42979427]
[1738154790011,0.85,229.32,229.3,23.776884]
[1738154790195,0.85,229.32,229.31,8.03859427]
[1738154790994,0.85,229.32,229.31,36.17637827]
[1738154791175,0.85,229.34,229.31,12.39949427]
[1738154791482,0.85,229.34,229.33,8.03859427]
[1738154791688,0.913,229.36,229.33,8.03859427]
[1738154791886,0.913,229.36,229.35,8.03859427]
[1738154792482,0.913,229.36,229.27,0.12549]
[1738154792674,4.0,228.88,228.87,89.06725327]
[1738154792874,26.25753933,228.79,228.61,12.61355067]
[1738154793076,41.49349,228.79,228.66,1.69604987]
[1738154793290,42.49349,228.79,228.78,7.31544305]
[1738154793473,42.49349,228.79,228.69,346.30215743]
[1738154793474,1.97869533,228.73,228.69,34.30215743]
[1738154793683,14.592246,228.73,228.69,34.30215743]
[1738154793883,21.97869533,228.7,228.69,15.02916703]
[1738154794095,58.92481688,228.7,228.69,15.02916703]
[1738154794409,0.97869533,228.55,228.53,51.82]
[1738154794698,0.97869533,228.55,228.54,20.22454183]
[1738154795287,0.97869533,228.55,228.53,51.82]
[1738154795288,1.0,228.54,228.53,51.82]
[1738154795499,1.0,228.54,228.53,72.04454183]
[1738154795789,0.97869533,228.55,228.53,72.04454183]
[1738154795790,9.72887189,228.55,228.53,72.04454183]
[1738154796387,9.72887189,228.55,228.54,312.0]
[1738154796692,1.0,228.54,228.53,72.04454183]
[1738154796899,9.09777473,228.54,228.53,72.04454183]
[1738154797374,8.09777473,228.54,228.53,50.76358572]
[1738154797577,16.74443426,228.54,228.53,50.76358572]
[1738154797777,11.52887939,228.55,228.54,24.027864]
[1738154797973,0.97869533,228.59,228.57,20.0]
[1738154798197,0.97869533,228.59,228.58,20.22454183]
[1738154798494,1.97869533,228.59,228.58,20.22454183]
[1738154798908,1.97869533,228.59,228.58,72.12454183]
[1738154799403,4.44757617,228.59,228.58,72.12454183]
[1738154799588,4.44757617,228.59,228.58,23.49051482]
[1738154800093,4.44757617,228.59,228.58,8.47e-06]
[1738154800597,24.89947572,228.59,228.58,8.47e-06]
[1738154800986,22.92078039,228.59,228.58,40.70006366]
[1738154801186,20.45189955,228.59,228.58,352.70006366]
[1738154801577,20.45189955,228.59,228.58,20.22454183]
[1738154802078,42.38781536,228.59,228.58,20.22454183]
[1738154802393,20.45189955,228.59,228.58,1.132e-05]
[1738154802588,20.45189955,228.59,228.58,315.56001132]
[1738154802797,20.45189955,228.59,228.58,24.03552183]
[1738154803003,20.45189955,228.59,228.58,44.26006366]
[1738154803509,20.45189955,228.59,228.58,68.16243766]
[1738154803687,1.97869533,228.64,228.61,20.0]
[1738154803880,0.97869533,228.64,228.63,332.22454183]
[1738154804798,1.97869533,228.64,228.63,332.22454183]
[1738154805309,0.97869533,228.64,228.63,332.22454183]
[1738154805499,1.97869533,228.64,228.63,332.22454183]
[1738154806407,0.97869533,228.64,228.63,332.22454183]
[1738154806614,1.97869533,228.64,228.63,332.22454183]
[1738154809289,1.97869533,228.64,228.61,24.59874183]
[1738154809493,1.97869533,228.62,228.59,24.59894183]
[1738154809703,1.97869533,228.6,228.59,24.59894183]
[1738154810728,1.97869533,228.6,228.59,24.62894183]
[1738154811720,1.0,228.6,228.59,24.62894183]
[1738154812316,1.0,228.6,228.59,336.62894183]
[1738154812611,1.97869533,228.6,228.59,336.62894183]
[1738154815093,1.97869533,228.6,228.59,4.4044]
[1738154815293,1.97869533,228.6,228.59,24.62894183]
[1738154820611,1.97869533,228.6,228.59,4.4044]
[1738154821014,1.97869533,228.6,228.59,20.25454183]
[1738154821807,0.97869533,228.62,228.59,20.25454183]
[1738154822012,0.97869533,228.62,228.61,20.22454183]
[1738154823295,0.97869533,228.62,228.61,24.59874183]
[1738154825022,0.063,228.64,228.61,24.59874183]
[1738154825221,0.063,228.64,228.63,20.22454183]
[1738154825408,0.063,228.64,228.63,24.59834183]
[1738154832536,0.063,228.64,228.63,17.00235901]
[1738154833944,12.62855901,228.76,228.63,27.93695901]
[1738154834245,12.62855901,228.76,228.69,12.62855901]
[1738154834446,0.43019688,228.75,228.69,12.62855901]
[1738154834644,0.43019688,228.75,228.67,12.62855901]
[1738154835445,3.1329709,228.74,228.67,12.62855901]
[1738154835945,6.26661105,228.74,228.67,12.62855901]
[1738154836128,12.81881219,228.74,228.68,4.3729]
[1738154836717,3.1329709,228.73,228.68,4.3729]
[1738154837350,3.13364015,228.72,228.68,4.3729]
[1738154837724,12.81881219,228.72,228.67,10.70174843]
[1738154838737,2.52007736,228.71,228.67,10.70174843]
[1738154839841,2.52007736,228.71,228.68,4.3729]
[1738154840041,2.52007736,228.71,228.66,4.3733]
[1738154840750,0.43019688,228.72,228.67,12.62855901]
[1738154841853,0.43019688,228.73,228.67,12.62855901]
[1738154842154,12.62855901,228.76,228.67,4.3729]
[1738154842742,12.62855901,228.76,228.67,17.00145901]
[1738154842935,12.62855901,228.74,228.67,4.3729]
[1738154843654,0.43019688,228.75,228.67,17.00145901]
[1738154845254,12.62855901,228.76,228.67,17.00145901]
[1738154845447,0.43019688,228.77,228.69,12.62855901]
[1738154845650,3.05289688,228.77,228.69,12.62855901]
[1738154846551,0.063,228.76,228.69,12.62855901]
[1738154847256,0.063,228.76,228.69,17.00105901]
[1738154849358,12.79811173,228.71,228.69,1.80902281]
[1738154849558,12.79811173,228.71,228.68,12.62855901]
[1738154849855,12.79811173,228.71,228.7,12.62855901]
[1738154850352,38.65497936,228.74,228.67,0.03]
[1738154850542,41.27797936,228.74,228.67,4.403]
[1738154850742,38.65497936,228.74,228.67,4.403]
[1738154850944,26.02642035,228.74,228.67,4.403]
[1738154851261,25.59622347,228.74,228.68,12.62855901]
[1738154851457,25.59622347,228.74,228.7,12.62855901]
[1738154852347,25.59622347,228.74,228.7,17.00095901]
[1738154853961,25.48622347,228.74,228.7,17.00095901]
[1738154856263,25.48622347,228.74,228.72,12.62855901]
[1738154857658,25.48622347,228.74,228.7,12.62855901]
[1738154859163,25.54922347,228.74,228.71,4.3723]
[1738154861068,0.063,228.74,228.71,4.3723]
[1738154861648,2.6216,228.86,228.76,0.99990467]
[1738154861850,0.063,228.87,228.81,12.62855901]
[1738154862172,0.063,228.87,228.83,12.62855901]
[1738154862542,0.063,228.87,228.81,60.03056174]
[1738154862863,0.063,228.87,228.82,8.07056174]
[1738154863053,0.063,228.87,228.83,8.07056174]
[1738154863449,0.063,228.87,228.86,8.07056174]
[1738154863954,0.063,228.87,228.86,9.07046641]
[1738154864350,23.776884,228.85,228.81,51.96]
[1738154864670,2.6845,228.87,228.81,51.96]
[1738154864968,0.063,228.87,228.84,0.99990467]
[1738154865460,0.063,228.87,228.84,13.61659491]
[1738154866648,0.063,228.87,228.84,0.99990467]
[1738154866972,0.063,228.87,228.84,5.36970467]
[1738154868852,0.063,228.87,228.85,12.61669024]
[1738154869774,0.063,228.87,228.86,0.99990467]
[1738154870287,12.67969024,228.87,228.81,68.94709024]
[1738154870573,12.67969024,228.87,228.81,51.96]
[1738154870769,12.67969024,228.87,228.81,57.33030467]
[1738154870974,12.67969024,228.87,228.84,0.03]
[1738154871269,12.61669024,228.85,228.84,0.03]
[1738154871875,23.776884,228.86,228.84,0.03]
[1738154872861,0.063,228.87,228.84,0.03]
[1738154873971,36.51906424,228.85,228.84,0.03]
[1738154877078,1.24208592,228.91,228.84,0.03]
[1738154877079,0.063,228.97,228.94,1.0]
[1738154877376,0.18849,228.97,228.92,1.0]
[1738154877951,0.063,228.97,228.93,12.61669024]
[1738154878156,0.063,228.97,228.94,1.0]
[1738154878677,0.063,228.97,228.92,4.3683]
[1738154879866,0.063,228.97,228.91,16.98519024]
[1738154880092,23.965374,228.97,228.91,16.98519024]
[1738154881180,23.965374,228.97,228.92,1.0]
[1738154881369,36.77004424,228.95,228.87,6.36900467]
[1738154881569,12.61669024,228.89,228.85,1.0]
[1738154881960,23.902374,228.9,228.85,1.0]
[1738154882161,20.0,228.92,228.86,12.61669024]
[1738154882466,0.25098,228.94,228.88,13.61669024]
[1738154882771,0.25098,228.94,228.85,5.36930467]
[1738154882772,12.67969024,228.97,228.9,13.61669024]
[1738154882975,0.063,228.97,228.91,0.99990467]
[1738154883280,0.063,228.97,228.92,13.61669024]
[1738154883780,0.063,228.97,228.94,1.0]
[1738154884464,0.063,228.97,228.92,17.98499024]
[1738154884666,0.063,228.97,228.94,1.0]
[1738154886169,0.063,228.97,228.94,5.3678]
[1738154887060,0.063,228.97,228.94,1.0]
[1738154887468,0.063,228.97,228.94,5.3678]
[1738154887779,0.063,228.97,228.94,17.98449024]
[1738154889186,0.063,228.97,228.94,5.3678]
[1738154889875,24.153354,228.91,228.84,1.03]
[1738154890110,12.61669024,228.88,228.84,1.03]
[1738154890379,23.902374,228.87,228.84,1.03]
[1738154893680,12.61669024,228.86,228.84,1.03]
[1738154895677,15.23829024,228.86,228.84,0.03]
[1738154896193,23.902374,228.85,228.84,0.03]
[1738154896392,24.153354,228.85,228.84,0.03]
[1738154896575,24.278844,228.85,228.84,0.03]
[1738154897476,26.900644,228.85,228.84,0.03]
[1738154899791,24.153354,228.85,228.84,0.03]
[1738154900097,12.61669024,228.91,228.84,0.03]
[1738154900098,12.61669024,228.88,228.84,0.03]
[1738154901793,12.58746991,228.88,228.84,0.03]
[1738154902692,12.58746991,228.88,228.84,5.03]
[1738154902888,38.98575391,228.88,228.84,5.03]
[1738154903272,24.027864,228.85,228.84,5.03]
[1738154903477,24.153354,228.85,228.84,5.03]
[1738154903984,15.23809024,228.88,228.84,5.03]
[1738154904484,6.5527,228.92,228.85,1.0]
[1738154904485,12.74218024,228.9,228.85,1.0]
[1738154904895,15.36338024,228.9,228.85,1.0]
[1738154905591,12.61669024,228.88,228.84,5.03]
[1738154906103,12.61669024,228.86,228.84,5.03]
[1738154907487,0.37647,228.9,228.84,5.03]
[1738154907488,2.6215,228.87,228.84,5.03]
[1738154907802,0.063,228.88,228.84,5.03]
[1738154908382,12.67969024,228.88,228.84,5.03]
[1738154910002,12.67969024,228.88,228.84,6.02990467]
[1738154910190,12.67969024,228.88,228.85,1.0]
[1738154910385,0.063,228.88,228.85,1.0]
[1738154910790,0.063,228.88,228.87,1.0]
[1738154916092,0.063,228.88,228.85,2.5667]
[1738154916298,15.30109024,228.88,228.85,1.5667]
[1738154916481,12.67969024,228.88,228.85,1.5667]
[1738154916686,12.67969024,228.88,228.85,2.5667]
[1738154916687,0.063,228.88,228.85,2.5667]
[1738154917185,0.063,228.88,228.85,3.56660467]
[1738154917500,0.063,228.88,228.87,1.99990467]
[1738154918193,0.063,228.88,228.87,14.61659491]
[1738154918509,0.063,228.88,228.87,18.98579491]
[1738154920606,0.063,228.97,228.96,1.0]
[1738154921106,0.063,228.97,228.95,1.0]
[1738154923311,15.30009024,228.97,228.93,1.0]
[1738154925413,0.063,228.97,228.93,1.0]
[1738154928895,0.063,228.97,228.96,0.97077966]
[1738154931497,0.063,228.97,228.96,5.33827966]
[1738154932517,0.063,228.97,228.96,0.97077966]
[1738154933497,0.063,228.97,228.96,5.33827966]
[1738154934099,0.063,228.97,228.96,0.97077966]
[1738154935423,0.063,228.97,228.94,0.97077966]
[1738154935611,0.063,228.97,228.96,0.97077966]
[1738154936937,2.6834,228.97,228.94,0.97077966]
[1738154937830,0.063,228.97,228.94,0.97077966]
[1738154938538,0.063,228.97,228.96,0.97077966]
[1738154938920,39.20246424,228.97,228.92,0.97077966]
[1738154939629,39.20246424,228.97,228.95,0.97077966]
[1738154939937,39.20246424,228.97,228.9,0.99990467]
[1738154939938,39.20246424,228.97,228.92,0.97077966]
[1738154940123,12.61669024,228.95,228.92,0.97077966]
[1738154941034,23.902374,228.92,228.88,5.03]
[1738154941229,12.61669024,228.89,228.88,5.03]
[1738154941435,12.61669024,228.89,228.88,6.00077966]
[1738154941924,15.23789024,228.91,228.88,6.00077966]
[1738154942549,12.61669024,228.93,228.9,0.97077966]
[1738154942720,15.48837024,228.95,228.92,0.97077966]
[1738154943121,15.23739024,228.95,228.92,0.97077966]
[1738154945444,12.61669024,228.95,228.92,0.97077966]
[1738154945646,7.61669024,228.95,228.92,0.97077966]
[1738154945851,0.12549,228.94,228.92,0.97077966]
[1738154947055,39.01417424,228.95,228.92,0.97077966]
[1738154947254,36.51906424,228.95,228.94,0.97077966]
[1738154947547,15.23719024,228.96,228.94,0.97077966]
[1738154950046,15.23719024,228.96,228.92,0.97077966]
[1738154951130,39.13956424,228.96,228.95,0.97077966]
[1738154951760,0.063,228.97,228.95,0.97077966]
[1738154954226,2.80889,228.97,228.95,0.97077966]
[1738154954444,12.61669024,228.96,228.93,0.97077966]
[1738154954662,12.61669024,228.96,228.89,0.97077966]
[1738154954663,20.0,228.93,228.89,0.97077966]
[1738154954939,12.61669024,228.91,228.89,0.97077966]
[1738154955548,2.6211,228.91,228.89,0.97077966]
[1738154955847,2.621,228.92,228.91,0.97077966]
[1738154956042,12.61669024,228.95,228.91,0.97077966]
[1738154956344,26.522974,228.96,228.94,0.97077966]
[1738154956648,26.585974,228.96,228.94,0.97077966]
[1738154956847,0.063,228.96,228.94,0.97077966]
[1738154957350,20.0,228.95,228.94,0.97077966]
[1738154957657,0.063,228.96,228.94,1.97068433]
[1738154959530,12.99316024,228.95,228.94,0.97077966]
[1738154959730,12.99316024,228.95,228.92,0.97077966]
[1738154960323,20.37647,228.95,228.94,0.97077966]
[1738154960539,26.460484,228.96,228.94,0.97077966]
[1738154960745,0.063,228.96,228.94,0.97077966]
[1738154961051,0.063,228.96,228.88,0.03]
[1738154961052,0.12549,228.89,228.88,0.03]
[1738154961372,12.86767024,228.89,228.88,0.03]
[1738154961668,15.48897024,228.89,228.88,0.03]
[1738154963751,39.51683424,228.89,228.88,0.03]
[1738154964732,12.61669024,228.89,228.88,0.03]
[1738154966129,39.51683424,228.89,228.88,0.03]
[1738154969335,69.51683424,228.89,228.88,0.03]
[1738154969541,44.027864,228.86,228.85,0.03]
[1738154969734,56.64455424,228.86,228.85,0.03]
[1738154970136,59.26615424,228.86,228.85,0.03]
[1738154970856,59.51713424,228.86,228.85,0.03]
[1738154971451,89.51713424,228.86,228.85,0.03]
[1738154972556,59.51713424,228.86,228.85,0.03]
[1738154974039,59.39164424,228.86,228.85,0.03]
[1738154974246,89.51713424,228.86,228.85,0.03]
[1738154975651,62.74218024,228.86,228.85,0.03]
[1738154975857,35.36378024,228.86,228.85,0.03]
[1738154976351,59.14066424,228.86,228.85,0.03]
[1738154976557,56.89553424,228.86,228.85,0.03]
[1738154976736,59.51713424,228.86,228.85,0.03]
[1738154977261,89.51713424,228.86,228.85,0.03]
[1738154978657,59.51713424,228.86,228.85,0.03]
[1738154981660,0.12549,228.86,228.85,0.03]
[1738154981862,20.12549,228.86,228.85,0.03]
[1738154982065,0.12549,228.86,228.85,0.03]
[1738154982363,2.74709,228.86,228.85,0.03]
[1738154983656,3.12356,228.86,228.85,0.03]
[1738154984039,26.900444,228.86,228.85,0.03]
[1738154986870,0.12549,228.86,228.85,0.03]
[1738154987186,12.61669024,228.87,228.85,0.03]
[1738154987681,0.12549,228.87,228.85,0.03]
[1738154988250,12.61669024,228.89,228.85,0.03]
[1738154988251,12.61669024,228.89,228.85,1.02990467]
[1738154988461,12.61669024,228.91,228.86,0.97077966]
[1738154989566,12.61669024,228.93,228.89,1.97068433]
[1738154990092,0.063,228.95,228.93,0.97077966]
[1738154990294,20.063,228.95,228.93,1.97068433]
[1738154991660,0.063,228.95,228.93,1.97068433]
[1738154991875,0.063,228.95,228.94,12.61669024]
[1738154992769,0.063,228.95,228.94,16.98459024]
[1738154993279,0.063,228.95,228.93,3.61898433]
[1738154994083,0.063,228.95,228.93,20.60377457]
[1738154994256,0.063,228.95,228.94,12.61669024]
[1738154994664,0.063,228.95,228.94,16.98459024]
[1738154996080,0.063,228.98,228.95,13.5874699]
[1738154996284,0.063,228.98,228.95,14.58737457]
[1738154996684,0.063,228.98,228.95,18.95507457]
[1738155000091,0.063,228.98,228.95,1.97068433]
[1738155001287,0.063,228.98,228.95,0.97077966]
[1738155001486,0.063,228.98,228.95,17.9551699]
[1738155006177,0.063,228.98,228.95,0.97077966]
[1738155006584,12.67969024,228.98,228.95,0.97077966]
[1738155007289,12.67969024,228.98,228.95,1.97068433]
[1738155007695,0.063,228.98,228.95,1.97068433]
[1738155009892,0.063,228.98,228.95,0.97077966]
[1738155011311,20.063,228.97,228.95,0.97077966]
[1738155011476,22.6834,228.97,228.95,0.97077966]
[1738155012103,2.6834,228.97,228.95,0.97077966]
[1738155013712,20.063,228.97,228.95,0.97077966]
[1738155015515,20.063,228.97,228.95,1.97068433]
[1738155016207,20.063,228.97,228.95,2.00068433]
[1738155016513,0.063,228.97,228.95,6.36838433]
[1738155018111,0.063,228.97,228.95,18.98507457]
[1738155019436,0.063,228.97,228.96,12.61669024]
[1738155020616,0.063,228.97,228.96,16.98419024]
[1738155021010,0.063,228.97,228.96,4.3675]
[1738155021792,0.063,228.97,228.96,16.98419024]
[1738155025827,0.063,228.98,228.97,1.97068433]
[1738155026123,0.063,229.0,228.99,0.97077966]
[1738155026525,0.063,229.0,228.99,13.5874699]
[1738155026727,0.063,229.1,229.09,0.97077966]
[1738155028515,0.063,229.1,229.09,5.33577966]
[1738155029110,0.063,229.1,229.09,17.9524699]
[1738155032434,0.063,229.11,229.1,0.99990467]
[1738155032610,0.0001,229.11,229.1,13.61659491]
[1738155032810,0.0001,229.11,229.1,28.00146515]
[1738155033348,0.0001,229.11,229.1,29.00146515]
[1738155033827,0.0001,229.11,229.1,15.25928491]
[1738155034020,0.0001,229.11,229.1,15.13379491]
[1738155034229,0.0001,229.11,229.1,19.74967491]
[1738155034612,0.063,229.18,229.17,1.97068433]
[1738155034808,0.063,229.18,229.17,14.58737457]
[1738155036118,0.063,229.18,229.17,18.95087457]
[1738155043317,0.063,229.18,229.17,1.97068433]
[1738155044223,0.063,229.18,229.17,18.95087457]
[1738155054136,0.0001,229.19,229.18,0.25098]
[1738155054452,0.0001,229.2,229.19,2.09617433]
[1738155054654,0.0001,229.2,229.19,14.71286457]
[1738155054946,0.0001,229.2,229.19,19.07596457]
[1738155055149,0.0001,229.2,229.19,20.98603457]
[1738155055331,0.0001,229.2,229.19,45.76291857]
[1738155055857,0.063,229.32,229.31,0.97077966]
[1738155057054,0.063,229.32,229.31,1.97068433]
[1738155057633,0.063,229.32,229.31,18.94827457]
[1738155059158,0.063,229.32,229.31,6.33158433]
[1738155060464,0.063,229.32,229.31,1.97068433]
[1738155060641,0.063,229.32,229.12,0.97077966]
[1738155060642,20.0,229.23,229.12,0.97077966]
[1738155060845,12.61669024,229.14,229.11,0.99990467]
[1738155061233,12.61669024,229.12,229.11,0.99990467]
[1738155061464,12.61669024,229.14,229.11,0.99990467]
[1738155061843,12.61669024,229.14,229.12,0.97077966]
[1738155062330,12.61669024,229.14,229.11,0.99990467]
[1738155062655,12.61669024,229.12,229.11,0.99990467]
[1738155063361,36.64455424,229.12,229.09,0.03]
[1738155063555,12.61669024,229.1,229.09,0.03]
[1738155063756,36.64455424,229.1,229.09,0.03]
[1738155065156,12.61669024,229.12,229.1,0.97077966]
[1738155065339,12.61669024,229.12,229.1,1.97068433]
[1738155065939,12.61669024,229.14,229.1,1.97068433]
[1738155066164,12.61669024,229.14,229.12,0.97077966]
[1738155066848,12.61669024,229.14,229.13,0.97077966]
[1738155067051,12.61669024,229.14,229.1,0.99990467]
[1738155067250,12.61669024,229.12,229.1,0.99990467]
[1738155067783,12.61669024,229.12,229.09,1.00077966]
[1738155067961,12.61669024,229.1,229.09,1.00077966]
[1738155068269,12.61669024,229.14,229.11,0.97077966]
[1738155068440,12.61669024,229.14,229.13,0.97077966]
[1738155075562,24.027864,229.12,229.1,0.97077966]
[1738155075764,12.61669024,229.11,229.09,0.03]
[1738155076142,12.61669024,229.1,229.09,0.03]
[1738155076751,12.61669024,229.1,229.09,1.00077966]
[1738155076951,12.61669024,229.1,229.09,2.00068433]
[1738155077151,12.61669024,229.24,229.11,1.97068433]
[1738155077152,12.61669024,229.13,229.11,1.97068433]
[1738155077357,30.0,229.12,229.11,1.97068433]
[1738155078871,12.61669024,229.13,229.11,1.97068433]
[1738155079076,12.61669024,229.12,229.11,1.97068433]
[1738155080364,12.61669024,229.12,229.11,0.99990467]
[1738155081270,12.61669024,229.13,229.11,0.99990467]
[1738155081574,12.61669024,229.14,229.13,0.99990467]
[1738155082863,12.61669024,229.15,229.13,0.99990467]
[1738155083277,12.61669024,229.18,229.17,0.97077966]
[1738155083573,12.61669024,229.18,229.16,0.99990467]
[1738155083762,12.61669024,229.17,229.16,0.99990467]
[1738155084677,12.61669024,229.2,229.18,0.99990467]
[1738155084856,12.61669024,229.2,229.18,1.97068433]
[1738155085177,12.61669024,229.19,229.18,1.97068433]
[1738155086573,12.61669024,229.21,229.2,0.99990467]
[1738155087178,12.61669024,229.21,229.2,1.97068433]
[1738155089658,12.61669024,229.21,229.2,0.99990467]
[1738155089859,12.61669024,229.23,229.2,1.97068433]
[1738155090058,12.61669024,229.23,229.22,0.99990467]
[1738155091584,12.61669024,229.23,229.22,1.97068433]
[1738155094783,12.61669024,229.23,229.22,0.99990467]
[1738155097565,12.61669024,229.23,229.22,1.97068433]
[1738155097770,12.61669024,229.23,229.22,0.99990467]
[1738155099168,12.61669024,229.23,229.22,1.97068433]
[1738155099575,12.61669024,229.23,229.22,0.99990467]
[1738155099983,12.61669024,229.25,229.22,0.99990467]
[1738155100488,12.61669024,229.25,229.22,1.97068433]
[1738155101194,12.61669024,229.25,229.24,0.99990467]
[1738155101767,0.25098,229.29,229.26,0.99990467]
[1738155101768,12.61669024,229.29,229.26,0.99990467]
[1738155102071,1.77300641,229.32,229.26,0.99990467]
[1738155102072,15.66979024,229.27,229.26,0.99990467]
[1738155104005,3.0534,229.25,229.23,1.97068433]
[1738155104166,20.0,229.24,229.23,1.97068433]
[1738155104499,32.61669024,229.24,229.23,1.97068433]
[1738155106986,3.0534,229.25,229.23,1.97068433]
[1738155107285,12.61669024,229.24,229.23,1.97068433]
[1738155108596,8.04688545,229.24,229.23,1.97068433]
[1738155110394,8.04688545,229.25,229.23,1.97068433]
[1738155111072,28.04688545,229.26,229.25,0.99990467]
[1738155111273,31.10018545,229.26,229.25,0.99990467]
[1738155113181,30.05412682,229.26,229.25,0.99990467]
[1738155113794,30.05412682,229.26,229.23,1.97068433]
[1738155114005,3.1163,229.26,229.25,0.99990467]
[1738155115107,11.16318545,229.26,229.25,0.99990467]
[1738155118521,1.2797,229.19,228.95,77.00732997]
[1738155118802,42.23442725,229.05,228.98,13.52354028]
[1738155118988,44.153354,228.96,228.95,24.5790706]
[1738155119308,52.20023945,228.96,228.95,24.5790706]
[1738155119500,52.32572945,228.96,228.95,24.5790706]
[1738155119899,0.25098,228.94,228.9,0.03]
[1738155120107,8.04688545,228.91,228.9,0.03]
[1738155120618,12.60970438,228.91,228.9,0.03]
[1738155121517,15.66740438,228.93,228.9,0.03]
[1738155122206,9.8043141,228.92,228.9,0.03]
[1738155122912,9.8043141,228.92,228.85,12.63970438]
[1738155123714,6.62126452,228.92,228.85,12.63970438]
[1738155123917,15.66740438,228.93,228.85,12.63970438]
[1738155124812,12.60970438,228.91,228.85,0.03]
[1738155125499,15.66740438,228.93,228.85,12.63970438]
[1738155126914,12.60970438,228.91,228.85,0.03]
[1738155127089,12.60970438,228.89,228.85,0.03]
[1738155129113,15.66790438,228.89,228.85,0.03]
[1738155129614,24.027864,228.92,228.85,0.03]
[1738155129615,12.60970438,228.9,228.85,0.03]
[1738155129920,12.67270438,228.93,228.85,12.63970438]
[1738155130209,15.73040438,228.93,228.86,12.60970438]
[1738155130597,3.1207,228.93,228.86,12.60970438]
[1738155130803,0.063,228.93,228.86,12.60970438]
[1738155131013,0.063,228.93,228.9,12.60970438]
[1738155131395,0.063,228.93,228.92,12.60970438]
[1738155134900,0.063,228.93,228.88,20.0]
[1738155135103,0.063,228.93,228.92,12.60970438]
[1738155135518,3.0561,229.05,228.92,12.60970438]
[1738155135816,6.68384571,229.06,229.03,12.60970438]
[1738155136012,30.0,229.04,229.02,12.60970438]
[1738155136197,9.73974571,229.06,229.02,12.60970438]
[1738155136519,2.52215178,229.05,229.02,12.60970438]
[1738155137420,2.52215178,229.05,229.03,12.60970438]
[1738155138004,2.52215178,229.05,229.04,12.60970438]
[1738155138315,3.30668,229.08,229.04,12.60970438]
[1738155138505,23.30668,229.08,229.04,12.60970438]
[1738155138693,20.0,229.08,229.04,12.60970438]
[1738155139612,0.063,229.05,229.04,12.60970438]
[1738155140523,0.063,229.05,229.02,12.60970438]
[1738155141023,0.063,229.05,229.04,12.60970438]
[1738155142712,0.063,229.05,229.04,16.97570438]
[1738155146824,0.063,229.05,229.03,16.97590438]
[1738155147224,0.063,229.05,229.04,12.60970438]
[1738155149017,0.063,229.05,229.04,16.97570438]
[1738155154234,0.063,229.05,229.03,12.60970438]
[1738155154534,0.063,229.05,229.03,16.97590438]
[1738155154709,0.063,229.05,229.04,12.60970438]
[1738155156023,0.03468048,229.05,229.04,12.60970438]
[1738155156826,0.03468048,229.05,229.04,16.97570438]
[1738155158536,0.03468048,229.05,229.04,46.97570438]
[1738155159139,0.03468048,229.05,229.04,47.10119438]
[1738155159434,0.03468048,229.05,229.04,46.97570438]
[1738155163043,8.048e-05,229.05,229.04,47.66309997]
[1738155163335,8.048e-05,229.05,229.04,48.66309997]
[1738155164934,8.048e-05,229.05,229.04,48.91407997]
[1738155165142,8.048e-05,229.05,229.04,50.46967997]
[1738155165440,8.048e-05,229.05,229.04,50.03326438]
[1738155166234,8.048e-05,229.05,229.04,80.27044838]
[1738155166438,8.048e-05,229.05,229.04,80.70683414]
[1738155167045,0.063,229.14,229.08,30.0]
[1738155167335,0.063,229.14,229.13,12.60970438]
[1738155168541,2.60265198,229.14,229.13,12.60970438]
[1738155168744,2.60265198,229.14,229.13,16.97400438]
[1738155172331,0.063,229.14,229.13,16.97400438]
[1738155172648,0.063,229.14,229.13,12.41163341]